[Event "Live Chess"]
[Site "Chess.com"]
[Date "2023.05.20"]
[Round "-"]
[White "tuppyglossop"]
[Black "TheSmoulderingMaster"]
[Result "1-0"]
[WhiteElo "1605"]
[BlackElo "1739"]
[TimeControl "300"]
[EndTime "13:11:56 PDT"]
[Termination "tuppyglossop won by checkmate"]

1. e4 {[%clk 0:04:56.3]} 1... c5 {[%clk 0:04:59]} 2. Nf3 {[%clk 0:04:54.9]} 2...
d6 {[%clk 0:04:58.4]} 3. d4 {[%clk 0:04:54]} 3... cxd4 {[%clk 0:04:57.9]} 4.
Nxd4 {[%clk 0:04:53.9]} 4... Nf6 {[%clk 0:04:57.4]} 5. Nc3 {[%clk 0:04:52.8]}
5... g6 {[%clk 0:04:56.7]} 6. Be3 {[%clk 0:04:47.7]} 6... Bg7 {[%clk 0:04:55.9]}
7. h3 {[%clk 0:04:46.8]} 7... O-O {[%clk 0:04:55]} 8. Be2 {[%clk 0:04:45.3]}
8... Nc6 {[%clk 0:04:54.4]} 9. O-O {[%clk 0:04:43.5]} 9... Bd7 {[%clk
0:04:53.6]} 10. f4 {[%clk 0:04:42.2]} 10... Qc8 {[%clk 0:04:51.8]} 11. e5 {[%clk
0:04:33.4]} 11... dxe5 {[%clk 0:04:49.1]} 12. Nxc6 {[%clk 0:04:32.3]} 12... Bxc6
{[%clk 0:04:46.6]} 13. fxe5 {[%clk 0:04:31.4]} 13... Ne4 {[%clk 0:04:44.3]} 14.
Nxe4 {[%clk 0:04:29.3]} 14... Bxe4 {[%clk 0:04:43.5]} 15. Bd3 {[%clk 0:04:25.6]}
15... Bxd3 {[%clk 0:04:37.5]} 16. Qxd3 {[%clk 0:04:23.4]} 16... Bxe5 {[%clk
0:04:37.4]} 17. c3 {[%clk 0:04:14.6]} 17... Rd8 {[%clk 0:04:35.3]} 18. Qe4
{[%clk 0:04:13.1]} 18... Bf6 {[%clk 0:04:34.2]} 19. Rad1 {[%clk 0:04:10.1]}
19... Qc7 {[%clk 0:04:28.6]} 20. Bf4 {[%clk 0:04:03.5]} 20... Qa5 {[%clk
0:04:25.9]} 21. a3 {[%clk 0:03:55.1]} 21... Qb5 {[%clk 0:04:22.8]} 22. Bc1
{[%clk 0:03:29.7]} 22... Qb3 {[%clk 0:04:18.9]} 23. Rxd8+ {[%clk 0:03:24.9]}
23... Rxd8 {[%clk 0:04:18.8]} 24. Qe2 {[%clk 0:03:13.3]} 24... Rd6 {[%clk
0:04:09.6]} 25. Bh6 {[%clk 0:03:09.1]} 25... Qb6+ {[%clk 0:03:57]} 26. Kh1
{[%clk 0:03:05.7]} 26... Bg7 {[%clk 0:03:48.5]} 27. Bxg7 {[%clk 0:03:01]} 27...
Kxg7 {[%clk 0:03:47.7]} 28. Qxe7 {[%clk 0:02:59.7]} 28... Re6 {[%clk 0:03:46.7]}
29. Qxf7+ {[%clk 0:02:51.5]} 29... Kh6 {[%clk 0:03:46.1]} 30. Qf4+ {[%clk
0:02:47.3]} 30... Kg7 {[%clk 0:03:44.5]} 31. Qf8# {[%clk 0:02:44.6]} 1-0

[Event "Live Chess"]
[Site "Chess.com"]
[Date "2023.05.20"]
[Round "-"]
[White "McSlash1"]
[Black "Bot_Boy"]
[Result "1-0"]
[WhiteElo "2059"]
[BlackElo "330"]
[TimeControl "300"]
[EndTime "13:12:03 PDT"]
[Termination "McSlash1 won by checkmate"]

1. e4 {[%clk 0:04:59.3]} 1... c6 {[%clk 0:04:58.6]} 2. d4 {[%clk 0:04:58.5]}
2... d5 {[%clk 0:04:57.2]} 3. Nc3 {[%clk 0:04:58.1]} 3... e6 {[%clk 0:04:52.5]}
4. e5 {[%clk 0:04:56.8]} 4... Bb4 {[%clk 0:04:49.7]} 5. Bd3 {[%clk 0:04:56]}
5... Qa5 {[%clk 0:04:39]} 6. Bd2 {[%clk 0:04:50.6]} 6... Bxc3 {[%clk 0:04:26.9]}
7. bxc3 {[%clk 0:04:50.5]} 7... Na6 {[%clk 0:04:14.1]} 8. f4 {[%clk 0:04:47.5]}
8... b5 {[%clk 0:04:05.3]} 9. Nf3 {[%clk 0:04:45.6]} 9... Bd7 {[%clk 0:03:48.5]}
10. O-O {[%clk 0:04:44]} 10... c5 {[%clk 0:03:22.6]} 11. c4 {[%clk 0:04:39.3]}
11... b4 {[%clk 0:03:13.7]} 12. cxd5 {[%clk 0:04:36]} 12... exd5 {[%clk
0:02:56.3]} 13. c4 {[%clk 0:04:23.2]} 13... Be6 {[%clk 0:02:41.5]} 14. f5 {[%clk
0:04:19.5]} 14... Bd7 {[%clk 0:02:25.2]} 15. cxd5 {[%clk 0:04:14.4]} 15... g6
{[%clk 0:02:10.5]} 16. e6 {[%clk 0:04:12.5]} 16... Bb5 {[%clk 0:01:58.2]} 17.
Bxb5+ {[%clk 0:04:09.8]} 17... Qxb5 {[%clk 0:01:55.4]} 18. fxg6 {[%clk
0:04:08.8]} 18... hxg6 {[%clk 0:01:51.9]} 19. Ng5 {[%clk 0:04:07.4]} 19... f6
{[%clk 0:01:43]} 20. Nf7 {[%clk 0:04:03.6]} 20... Rh5 {[%clk 0:01:20.4]} 21.
Nd6+ {[%clk 0:04:02.3]} 21... Ke7 {[%clk 0:01:14]} 22. Nxb5 {[%clk 0:04:02.2]}
22... Rxd5 {[%clk 0:01:07.1]} 23. dxc5 {[%clk 0:03:59]} 23... Rxc5 {[%clk
0:00:56.6]} 24. Bxb4 {[%clk 0:03:57.7]} 24... Nxb4 {[%clk 0:00:52.7]} 25. Qd7+
{[%clk 0:03:57.1]} 25... Kf8 {[%clk 0:00:45]} 26. Qf7# {[%clk 0:03:57]} 1-0

[Event "Live Chess"]
[Site "Chess.com"]
[Date "2023.05.20"]
[Round "-"]
[White "GEMdzq"]
[Black "siddu198"]
[Result "1-0"]
[WhiteElo "2256"]
[BlackElo "1598"]
[TimeControl "300"]
[EndTime "13:12:06 PDT"]
[Termination "GEMdzq won by resignation"]

1. e4 {[%clk 0:04:56.9]} 1... e5 {[%clk 0:04:59]} 2. Nf3 {[%clk 0:04:51]} 2...
Nc6 {[%clk 0:04:58.2]} 3. Bb5 {[%clk 0:04:49.3]} 3... Bc5 {[%clk 0:04:55.7]} 4.
O-O {[%clk 0:04:46.7]} 4... d6 {[%clk 0:04:54]} 5. c3 {[%clk 0:04:45]} 5... a6
{[%clk 0:04:51.9]} 6. Ba4 {[%clk 0:04:43.7]} 6... Nf6 {[%clk 0:04:49.3]} 7. d4
{[%clk 0:04:41.6]} 7... exd4 {[%clk 0:04:49.2]} 8. cxd4 {[%clk 0:04:38.6]} 8...
Ba7 {[%clk 0:04:46.6]} 9. Nc3 {[%clk 0:04:31.3]} 9... O-O {[%clk 0:04:45.2]} 10.
Bg5 {[%clk 0:04:24]} 10... h6 {[%clk 0:04:43.5]} 11. Bh4 {[%clk 0:04:22.5]}
11... Bg4 {[%clk 0:04:32]} 12. Nd5 {[%clk 0:04:07.8]} 12... g5 {[%clk
0:04:13.7]} 13. Bg3 {[%clk 0:03:58.2]} 13... Bxf3 {[%clk 0:03:46.4]} 14. Qxf3
{[%clk 0:03:55.2]} 14... Nxd5 {[%clk 0:03:38.6]} 15. Bxc6 {[%clk 0:03:50.2]}
15... bxc6 {[%clk 0:03:34.1]} 16. exd5 {[%clk 0:03:49.6]} 16... cxd5 {[%clk
0:03:30.7]} 17. Qxd5 {[%clk 0:03:47.6]} 17... Qf6 {[%clk 0:03:29.8]} 18. Rfd1
{[%clk 0:03:39.5]} 18... h5 {[%clk 0:03:09.1]} 19. f3 {[%clk 0:03:28]} 19... c5
{[%clk 0:03:01]} 20. Bf2 {[%clk 0:03:19.2]} 20... cxd4 {[%clk 0:02:56.1]} 21.
Bxd4 {[%clk 0:03:18.3]} 21... Bxd4+ {[%clk 0:02:55.9]} 22. Rxd4 {[%clk
0:03:17.3]} 22... Rad8 {[%clk 0:02:34]} 23. Rad1 {[%clk 0:03:15.7]} 23... Qe7
{[%clk 0:02:25.5]} 24. Re4 {[%clk 0:03:02.5]} 24... Qa7+ {[%clk 0:02:06.8]} 25.
Kh1 {[%clk 0:02:59.7]} 25... Qc5 {[%clk 0:02:05.2]} 26. h4 {[%clk 0:02:46.5]}
26... Qxd5 {[%clk 0:01:49]} 27. Rxd5 {[%clk 0:02:46.4]} 27... f6 {[%clk
0:01:46.4]} 28. hxg5 {[%clk 0:02:44.8]} 28... fxg5 {[%clk 0:01:44.9]} 29. Rxg5+
{[%clk 0:02:44.3]} 29... Kf7 {[%clk 0:01:41.5]} 30. Rxh5 {[%clk 0:02:43.5]}
30... Rh8 {[%clk 0:01:38.9]} 31. Rxh8 {[%clk 0:02:41.8]} 31... Rxh8+ {[%clk
0:01:38.8]} 32. Kg1 {[%clk 0:02:40.4]} 32... d5 {[%clk 0:01:36.4]} 33. Re5
{[%clk 0:02:34.2]} 33... Rd8 {[%clk 0:01:33.3]} 34. Kf2 {[%clk 0:02:32.9]} 34...
Kf6 {[%clk 0:01:31.8]} 35. f4 {[%clk 0:02:31.6]} 35... Rb8 {[%clk 0:01:28.2]}
36. b3 {[%clk 0:02:26.8]} 36... Rb5 {[%clk 0:01:26.1]} 37. Ke3 {[%clk
0:02:23.3]} 37... Ra5 {[%clk 0:01:23.4]} 38. a4 {[%clk 0:02:21.4]} 38... Rc5
{[%clk 0:01:21.8]} 39. Kd4 {[%clk 0:02:20.4]} 39... Rc1 {[%clk 0:01:18.2]} 40.
Rxd5 {[%clk 0:02:19.4]} 40... Rd1+ {[%clk 0:01:12]} 41. Kc4 {[%clk 0:02:18.2]}
41... Rc1+ {[%clk 0:01:08.2]} 42. Kb4 {[%clk 0:02:14.8]} 42... Rg1 {[%clk
0:01:02.6]} 43. Rg5 {[%clk 0:02:12.7]} 43... Rf1 {[%clk 0:01:01.1]} 44. g3
{[%clk 0:02:11.7]} 44... Rd1 {[%clk 0:00:58.1]} 45. Ka5 {[%clk 0:02:08.6]} 45...
Rd6 {[%clk 0:00:57.3]} 46. b4 {[%clk 0:02:07.7]} 46... Ke6 {[%clk 0:00:54.9]}
47. b5 {[%clk 0:02:07]} 47... axb5 {[%clk 0:00:53.5]} 48. axb5 {[%clk
0:02:06.9]} 48... Rd1 {[%clk 0:00:48.5]} 49. b6 {[%clk 0:02:06.8]} 49... Ra1+
{[%clk 0:00:47.5]} 50. Kb5 {[%clk 0:02:05.9]} 50... Rb1+ {[%clk 0:00:46.8]} 51.
Kc6 {[%clk 0:02:05.2]} 51... Rc1+ {[%clk 0:00:43.8]} 52. Kb7 {[%clk 0:02:05.1]}
52... Kd6 {[%clk 0:00:40.3]} 53. Rg6+ {[%clk 0:02:00.5]} 53... Kd7 {[%clk
0:00:26.9]} 54. f5 {[%clk 0:01:59.8]} 54... Rf1 {[%clk 0:00:20.7]} 55. g4 {[%clk
0:01:56.1]} 55... Ke7 {[%clk 0:00:18.1]} 56. Kc7 {[%clk 0:01:50.3]} 56... Rc1+
{[%clk 0:00:16.7]} 57. Rc6 {[%clk 0:01:49.5]} 57... Rh1 {[%clk 0:00:07.5]} 58.
b7 {[%clk 0:01:46.7]} 58... Rh7 {[%clk 0:00:03.4]} 59. b8=Q {[%clk 0:01:40.9]}
1-0

[Event "Live Chess"]
[Site "Chess.com"]
[Date "2023.05.20"]
[Round "-"]
[White "JanMur7"]
[Black "Vladyslav2008"]
[Result "1-0"]
[WhiteElo "1960"]
[BlackElo "2157"]
[TimeControl "300"]
[EndTime "13:12:08 PDT"]
[Termination "JanMur7 won by resignation"]

1. g3 {[%clk 0:04:56.1]} 1... d5 {[%clk 0:04:58.5]} 2. Bg2 {[%clk 0:04:56]} 2...
Nf6 {[%clk 0:04:57.4]} 3. c4 {[%clk 0:04:54.4]} 3... e6 {[%clk 0:04:54.3]} 4.
cxd5 {[%clk 0:04:53.8]} 4... exd5 {[%clk 0:04:52.6]} 5. d4 {[%clk 0:04:53.3]}
5... c6 {[%clk 0:04:51.2]} 6. Nc3 {[%clk 0:04:52.4]} 6... Bf5 {[%clk 0:04:49.8]}
7. Nf3 {[%clk 0:04:51]} 7... Nbd7 {[%clk 0:04:47.1]} 8. Bf4 {[%clk 0:04:49.9]}
8... Bb4 {[%clk 0:04:42.6]} 9. O-O {[%clk 0:04:48.6]} 9... O-O {[%clk 0:04:41]}
10. a3 {[%clk 0:04:47.3]} 10... Be7 {[%clk 0:04:38.7]} 11. b4 {[%clk 0:04:43.6]}
11... a5 {[%clk 0:04:37.4]} 12. b5 {[%clk 0:04:40]} 12... Ne4 {[%clk 0:04:36.3]}
13. Nxe4 {[%clk 0:04:36.2]} 13... Bxe4 {[%clk 0:04:34.6]} 14. bxc6 {[%clk
0:04:33.8]} 14... bxc6 {[%clk 0:04:33.3]} 15. Ne5 {[%clk 0:04:32.8]} 15... Bxg2
{[%clk 0:04:30.3]} 16. Kxg2 {[%clk 0:04:32.2]} 16... Nxe5 {[%clk 0:04:28.8]} 17.
Bxe5 {[%clk 0:04:32.1]} 17... Bf6 {[%clk 0:04:27.1]} 18. Bxf6 {[%clk 0:04:30.2]}
18... Qxf6 {[%clk 0:04:25.9]} 19. e3 {[%clk 0:04:29.6]} 19... Rab8 {[%clk
0:04:23.2]} 20. Qa4 {[%clk 0:04:28.2]} 20... h5 {[%clk 0:04:17.7]} 21. h4 {[%clk
0:04:22.3]} 21... Rb5 {[%clk 0:04:12.8]} 22. Rab1 {[%clk 0:04:18.4]} 22... Rfb8
{[%clk 0:04:10.2]} 23. Rxb5 {[%clk 0:04:15.2]} 23... Rxb5 {[%clk 0:04:09.8]} 24.
Rc1 {[%clk 0:04:13.5]} 24... Rb2 {[%clk 0:04:07.3]} 25. Rc2 {[%clk 0:04:11.7]}
25... Rb5 {[%clk 0:04:03.3]} 26. Rc5 {[%clk 0:03:56.3]} 26... Rxc5 {[%clk
0:03:59.5]} 27. dxc5 {[%clk 0:03:56.2]} 27... Qc3 {[%clk 0:03:42.3]} 28. Qxc6
{[%clk 0:03:51.6]} 28... Qxa3 {[%clk 0:03:41.2]} 29. Qxd5 {[%clk 0:03:49.6]}
29... Qc3 {[%clk 0:03:35.4]} 30. c6 {[%clk 0:03:47.7]} 30... a4 {[%clk
0:03:34.3]} 31. Qd8+ {[%clk 0:03:41.6]} 31... Kh7 {[%clk 0:03:32.8]} 32. c7
{[%clk 0:03:40.1]} 32... Qc6+ {[%clk 0:03:31.5]} 33. Kh2 {[%clk 0:03:37.6]}
33... Qf3 {[%clk 0:03:28.6]} 34. Kg1 {[%clk 0:03:35.8]} 34... a3 {[%clk
0:03:24.3]} 35. c8=Q {[%clk 0:03:34.1]} 35... a2 {[%clk 0:03:23.5]} 36. Qc2+
{[%clk 0:03:31.9]} 1-0

[Event "Live Chess"]
[Site "Chess.com"]
[Date "2023.05.20"]
[Round "-"]
[White "Shepherds_Pie"]
[Black "birdseed45"]
[Result "1-0"]
[WhiteElo "1906"]
[BlackElo "1885"]
[TimeControl "300"]
[EndTime "13:12:11 PDT"]
[Termination "Shepherds_Pie won by resignation"]

1. c4 {[%clk 0:04:57.9]} 1... c5 {[%clk 0:04:58.7]} 2. Nc3 {[%clk 0:04:56.9]}
2... Nc6 {[%clk 0:04:56.8]} 3. g3 {[%clk 0:04:56]} 3... g6 {[%clk 0:04:56]} 4.
Bg2 {[%clk 0:04:55.2]} 4... Bg7 {[%clk 0:04:55.4]} 5. Nf3 {[%clk 0:04:52.2]}
5... d6 {[%clk 0:04:54.4]} 6. O-O {[%clk 0:04:50.7]} 6... Nf6 {[%clk 0:04:53.5]}
7. d4 {[%clk 0:04:49.1]} 7... cxd4 {[%clk 0:04:51.6]} 8. Nxd4 {[%clk 0:04:47.1]}
8... Bd7 {[%clk 0:04:51.2]} 9. b3 {[%clk 0:04:42.3]} 9... O-O {[%clk 0:04:48.3]}
10. Bb2 {[%clk 0:04:41.2]} 10... Rc8 {[%clk 0:04:45.7]} 11. e3 {[%clk
0:04:39.2]} 11... Bg4 {[%clk 0:04:40.3]} 12. Qd2 {[%clk 0:04:37.7]} 12... Qd7
{[%clk 0:04:36]} 13. Nd5 {[%clk 0:04:34.6]} 13... Nxd5 {[%clk 0:04:32.7]} 14.
cxd5 {[%clk 0:04:33.5]} 14... Ne5 {[%clk 0:04:28.7]} 15. f4 {[%clk 0:04:25.7]}
15... Bf5 {[%clk 0:04:04]} 16. Nxf5 {[%clk 0:04:20.1]} 16... Qxf5 {[%clk
0:04:00.9]} 17. fxe5 {[%clk 0:04:18.6]} 17... Qg4 {[%clk 0:03:56.1]} 18. Rf4
{[%clk 0:04:11.6]} 18... Qh5 {[%clk 0:03:52.2]} 19. exd6 {[%clk 0:04:06.7]}
19... exd6 {[%clk 0:03:44.2]} 20. Bxg7 {[%clk 0:04:03.1]} 20... Kxg7 {[%clk
0:03:44.1]} 21. Raf1 {[%clk 0:03:59.7]} 21... Qe5 {[%clk 0:03:39.8]} 22. Bh3
{[%clk 0:03:49.9]} 22... Rc3 {[%clk 0:03:34.8]} 23. Qd4 {[%clk 0:03:45.4]} 23...
Rxe3 {[%clk 0:03:26.7]} 24. Qxe5+ {[%clk 0:03:41.7]} 24... Rxe5 {[%clk
0:03:26.6]} 25. Rd1 {[%clk 0:03:36.4]} 25... Re2 {[%clk 0:03:21.5]} 26. Rf2
{[%clk 0:03:34.9]} 26... Re5 {[%clk 0:03:17.7]} 27. Rc2 {[%clk 0:03:30]} 27...
Re7 {[%clk 0:03:11.3]} 28. Bg2 {[%clk 0:03:27.1]} 28... Rd8 {[%clk 0:03:04]} 29.
Rdc1 {[%clk 0:03:23.8]} 29... a6 {[%clk 0:02:55.9]} 30. Kf2 {[%clk 0:03:19.9]}
30... b5 {[%clk 0:02:53]} 31. Rc7 {[%clk 0:03:17]} 31... Re5 {[%clk 0:02:51.9]}
32. Bf3 {[%clk 0:03:13.1]} 32... g5 {[%clk 0:02:48.1]} 33. R7c6 {[%clk
0:03:10.5]} 33... Rf5 {[%clk 0:02:45.2]} 34. Kg2 {[%clk 0:03:03.4]} 34... Kg6
{[%clk 0:02:37.8]} 35. Rxa6 {[%clk 0:03:01.7]} 35... h5 {[%clk 0:02:36.7]} 36.
h3 {[%clk 0:02:58.4]} 36... Re5 {[%clk 0:02:29.2]} 37. Rcc6 {[%clk 0:02:50.8]}
37... Kg7 {[%clk 0:02:16.7]} 38. Rxd6 {[%clk 0:02:47.6]} 38... Rc8 {[%clk
0:02:16.2]} 39. Rdc6 {[%clk 0:02:41.5]} 39... Rd8 {[%clk 0:02:10.1]} 40. d6
{[%clk 0:02:39.4]} 40... f5 {[%clk 0:02:08.9]} 41. Ra7+ {[%clk 0:02:36]} 41...
Kf8 {[%clk 0:02:07.1]} 42. d7 {[%clk 0:02:31.9]} 42... g4 {[%clk 0:02:04.4]} 43.
hxg4 {[%clk 0:02:27.6]} 43... hxg4 {[%clk 0:02:03]} 44. Bd1 {[%clk 0:02:25.5]}
44... Rd5 {[%clk 0:01:59.2]} 45. Be2 {[%clk 0:02:19.1]} 45... R8xd7 {[%clk
0:01:52]} 46. Rxd7 {[%clk 0:02:15.8]} 46... Rxd7 {[%clk 0:01:51.9]} 47. Bxb5
{[%clk 0:02:13.4]} 47... Rd2+ {[%clk 0:01:50.7]} 48. Kf1 {[%clk 0:02:11.2]}
48... Rxa2 {[%clk 0:01:49.6]} 49. Bc4 {[%clk 0:02:08.9]} 49... Kg7 {[%clk
0:01:46.2]} 50. Rc7+ {[%clk 0:02:06.1]} 50... Kf6 {[%clk 0:01:43.7]} 51. Rf7+
{[%clk 0:02:04.4]} 51... Ke5 {[%clk 0:01:42.1]} 52. Bd3 {[%clk 0:01:56.1]} 52...
Rb2 {[%clk 0:01:33.1]} 53. Rxf5+ {[%clk 0:01:50.8]} 53... Kd4 {[%clk 0:01:32.5]}
54. Bc4 {[%clk 0:01:48.3]} 54... Ke3 {[%clk 0:01:29.7]} 55. Re5+ {[%clk
0:01:38.4]} 55... Kf3 {[%clk 0:01:26.7]} 56. Re1 {[%clk 0:01:26.6]} 56... Kxg3
{[%clk 0:01:17.4]} 57. Re3+ {[%clk 0:01:21]} 57... Kh2 {[%clk 0:01:11.7]} 58.
Re2+ {[%clk 0:01:19]} 58... Rxe2 {[%clk 0:01:10.1]} 59. Bxe2 {[%clk 0:01:17.7]}
59... g3 {[%clk 0:01:10]} 60. Bf3 {[%clk 0:01:16.8]} 60... Kh3 {[%clk
0:00:59.5]} 61. Kg1 {[%clk 0:01:12.4]} 61... Kh4 {[%clk 0:00:57.7]} 62. b4
{[%clk 0:01:11.4]} 62... Kh3 {[%clk 0:00:52.8]} 63. b5 {[%clk 0:01:11.3]} 63...
g2 {[%clk 0:00:52.5]} 64. b6 {[%clk 0:01:09.7]} 1-0

[Event "Live Chess"]
[Site "Chess.com"]
[Date "2023.05.20"]
[Round "-"]
[White "profpirate4"]
[Black "fretle"]
[Result "0-1"]
[WhiteElo "1066"]
[BlackElo "1847"]
[TimeControl "300"]
[EndTime "13:12:12 PDT"]
[Termination "fretle won by resignation"]

1. d4 {[%clk 0:04:58.3]} 1... Nf6 {[%clk 0:04:57.8]} 2. c4 {[%clk 0:04:57.5]}
2... g6 {[%clk 0:04:55.4]} 3. Nc3 {[%clk 0:04:56.7]} 3... Bg7 {[%clk 0:04:54.1]}
4. f3 {[%clk 0:04:56]} 4... d5 {[%clk 0:04:52.9]} 5. cxd5 {[%clk 0:04:51.2]}
5... Nxd5 {[%clk 0:04:51.5]} 6. e4 {[%clk 0:04:50]} 6... Nxc3 {[%clk 0:04:50.1]}
7. bxc3 {[%clk 0:04:48.7]} 7... c5 {[%clk 0:04:47.2]} 8. Be3 {[%clk 0:04:36.9]}
8... Qa5 {[%clk 0:04:42.2]} 9. Ne2 {[%clk 0:04:31.3]} 9... Nc6 {[%clk
0:04:34.6]} 10. Qc2 {[%clk 0:04:17.8]} 10... O-O {[%clk 0:04:31.4]} 11. d5
{[%clk 0:04:13.7]} 11... Nd4 {[%clk 0:04:20.6]} 12. Nxd4 {[%clk 0:03:50.5]}
12... cxd4 {[%clk 0:04:19.8]} 13. Bd2 {[%clk 0:03:42.1]} 13... dxc3 {[%clk
0:04:18.9]} 14. Be3 {[%clk 0:03:35.7]} 14... b5 {[%clk 0:04:14.1]} 15. a3 {[%clk
0:03:31.9]} 15... b4 {[%clk 0:04:10.4]} 16. axb4 {[%clk 0:03:29.2]} 16... Qxa1+
{[%clk 0:04:09.2]} 17. Bc1 {[%clk 0:03:26.5]} 17... Rb8 {[%clk 0:03:55.1]} 0-1

[Event "Live Chess"]
[Site "Chess.com"]
[Date "2023.05.20"]
[Round "-"]
[White "lightningorderyt"]
[Black "FunSingingHawk"]
[Result "0-1"]
[WhiteElo "524"]
[BlackElo "1210"]
[TimeControl "300"]
[EndTime "13:12:15 PDT"]
[Termination "FunSingingHawk won by resignation"]

1. d4 {[%clk 0:04:56.9]} 1... d5 {[%clk 0:04:57.5]} 2. c4 {[%clk 0:04:55.6]}
2... Nc6 {[%clk 0:04:46.4]} 3. Nc3 {[%clk 0:04:54]} 3... Nf6 {[%clk 0:04:43.2]}
4. Bg5 {[%clk 0:04:49.5]} 4... e6 {[%clk 0:04:24.4]} 5. e3 {[%clk 0:04:46.3]}
5... Bd6 {[%clk 0:04:18.7]} 6. c5 {[%clk 0:04:41.1]} 6... Be7 {[%clk 0:03:58.4]}
7. Bxf6 {[%clk 0:04:34.1]} 7... Bxf6 {[%clk 0:03:54.8]} 8. Nf3 {[%clk 0:04:32]}
8... O-O {[%clk 0:03:51.6]} 9. Bd3 {[%clk 0:04:28.9]} 9... e5 {[%clk 0:03:32.5]}
10. O-O {[%clk 0:04:01.9]} 10... exd4 {[%clk 0:03:18.4]} 11. exd4 {[%clk
0:03:56.5]} 11... Nxd4 {[%clk 0:03:10.4]} 12. Nxd4 {[%clk 0:03:42.3]} 12... Bxd4
{[%clk 0:03:06]} 13. Qc2 {[%clk 0:03:41.3]} 13... Bxc5 {[%clk 0:03:02.4]} 14.
Bxh7+ {[%clk 0:03:38.2]} 14... Kh8 {[%clk 0:02:53.3]} 15. Bd3 {[%clk 0:03:26.1]}
15... Be6 {[%clk 0:02:19.2]} 16. Na4 {[%clk 0:03:16]} 16... Bd4 {[%clk
0:01:58.6]} 17. Qe2 {[%clk 0:03:06.2]} 17... Qf6 {[%clk 0:01:47.5]} 18. Qh5+
{[%clk 0:02:58.8]} 18... Qh6 {[%clk 0:01:33.6]} 19. Qxh6+ {[%clk 0:02:52.5]}
19... gxh6 {[%clk 0:01:31.8]} 20. Rad1 {[%clk 0:02:40.8]} 20... c6 {[%clk
0:01:13.5]} 21. b3 {[%clk 0:02:21.8]} 21... b5 {[%clk 0:01:10.1]} 22. Be2 {[%clk
0:02:08.6]} 22... bxa4 {[%clk 0:01:06.8]} 23. Rxd4 {[%clk 0:02:06.4]} 23... c5
{[%clk 0:01:02.7]} 24. Rxa4 {[%clk 0:02:04.2]} 24... Rfb8 {[%clk 0:00:41.8]} 25.
Rh4 {[%clk 0:02:00.5]} 25... Kh7 {[%clk 0:00:35.1]} 26. Rc1 {[%clk 0:01:57.9]}
26... c4 {[%clk 0:00:28.6]} 27. bxc4 {[%clk 0:01:51.2]} 27... dxc4 {[%clk
0:00:25.5]} 28. Bxc4 {[%clk 0:01:48.7]} 28... Bxc4 {[%clk 0:00:23.5]} 29. Rcxc4
{[%clk 0:01:47.4]} 29... Rb1+ {[%clk 0:00:18]} 0-1

[Event "Live Chess"]
[Site "Chess.com"]
[Date "2023.05.20"]
[Round "-"]
[White "MalcolmPein"]
[Black "wadsy27"]
[Result "0-1"]
[WhiteElo "2273"]
[BlackElo "2552"]
[TimeControl "300"]
[EndTime "13:12:20 PDT"]
[Termination "wadsy27 won by resignation"]

1. d4 {[%clk 0:04:55.6]} 1... Nf6 {[%clk 0:04:58]} 2. c4 {[%clk 0:04:54.5]} 2...
c5 {[%clk 0:04:57.2]} 3. d5 {[%clk 0:04:52.6]} 3... e6 {[%clk 0:04:56.5]} 4. Nc3
{[%clk 0:04:51.4]} 4... exd5 {[%clk 0:04:55.9]} 5. cxd5 {[%clk 0:04:50.2]} 5...
d6 {[%clk 0:04:55.5]} 6. Nf3 {[%clk 0:04:46.8]} 6... g6 {[%clk 0:04:54]} 7. e4
{[%clk 0:04:45.6]} 7... a6 {[%clk 0:04:52.3]} 8. a4 {[%clk 0:04:43.7]} 8... Bg4
{[%clk 0:04:51.1]} 9. Be2 {[%clk 0:04:38.2]} 9... Bg7 {[%clk 0:04:49]} 10. O-O
{[%clk 0:04:37.2]} 10... O-O {[%clk 0:04:48.1]} 11. h3 {[%clk 0:04:30.1]} 11...
Bxf3 {[%clk 0:04:46.6]} 12. Bxf3 {[%clk 0:04:30]} 12... Nbd7 {[%clk 0:04:45.8]}
13. Re1 {[%clk 0:04:27]} 13... Rb8 {[%clk 0:04:40.3]} 14. Be2 {[%clk 0:04:24.6]}
14... Re8 {[%clk 0:04:36.6]} 15. Bf1 {[%clk 0:04:23.8]} 15... Qc7 {[%clk
0:04:29.5]} 16. Bf4 {[%clk 0:04:22.5]} 16... c4 {[%clk 0:04:04.9]} 17. a5 {[%clk
0:02:57.3]} 17... b5 {[%clk 0:03:22.7]} 18. axb6 {[%clk 0:02:54.9]} 18... Rxb6
{[%clk 0:03:21.6]} 19. Ra2 {[%clk 0:02:45.8]} 19... Nc5 {[%clk 0:02:37.7]} 20.
Be3 {[%clk 0:01:50.4]} 20... Rb4 {[%clk 0:02:13.6]} 21. Bd4 {[%clk 0:01:25.7]}
21... Nfd7 {[%clk 0:02:04]} 22. Bxg7 {[%clk 0:01:23.6]} 22... Kxg7 {[%clk
0:02:03.9]} 23. Qd4+ {[%clk 0:01:20.7]} 23... f6 {[%clk 0:02:00.9]} 24. Bxc4
{[%clk 0:01:16.9]} 24... Nb3 {[%clk 0:01:46.1]} 25. Qd1 {[%clk 0:00:54.9]} 25...
Qxc4 {[%clk 0:01:42.9]} 0-1

[Event "Live Chess"]
[Site "Chess.com"]
[Date "2023.05.20"]
[Round "-"]
[White "OceanFloater"]
[Black "chessfiction"]
[Result "0-1"]
[WhiteElo "998"]
[BlackElo "2429"]
[TimeControl "300"]
[EndTime "13:12:29 PDT"]
[Termination "chessfiction won by checkmate"]

1. e4 {[%clk 0:04:48.1]} 1... e5 {[%clk 0:04:59.1]} 2. Nf3 {[%clk 0:04:43.7]}
2... d5 {[%clk 0:04:59]} 3. exd5 {[%clk 0:04:42.3]} 3... e4 {[%clk 0:04:58.4]}
4. Nd4 {[%clk 0:04:38.7]} 4... f5 {[%clk 0:04:57.5]} 5. Nc3 {[%clk 0:04:30.9]}
5... Nf6 {[%clk 0:04:56.5]} 6. f3 {[%clk 0:04:25.4]} 6... Bc5 {[%clk 0:04:55.2]}
7. fxe4 {[%clk 0:04:22.9]} 7... Bxd4 {[%clk 0:04:53.3]} 8. exf5 {[%clk
0:04:18.1]} 8... Bxf5 {[%clk 0:04:53.2]} 9. Qe2+ {[%clk 0:04:17]} 9... Kf7
{[%clk 0:04:51.9]} 10. g3 {[%clk 0:04:07.9]} 10... Re8 {[%clk 0:04:51.1]} 11.
Qxe8+ {[%clk 0:03:56.7]} 11... Qxe8+ {[%clk 0:04:49.8]} 12. Be2 {[%clk
0:03:55.6]} 12... Bxc3 {[%clk 0:04:47.3]} 13. bxc3 {[%clk 0:03:54.6]} 13... Bg4
{[%clk 0:04:46.9]} 14. d3 {[%clk 0:03:47.4]} 14... Qxe2# {[%clk 0:04:46.2]} 0-1

[Event "Live Chess"]
[Site "Chess.com"]
[Date "2023.05.20"]
[Round "-"]
[White "Iggle-Piggle"]
[Black "mattihelenius2"]
[Result "1-0"]
[WhiteElo "1255"]
[BlackElo "489"]
[TimeControl "300"]
[EndTime "13:12:40 PDT"]
[Termination "Iggle-Piggle won by resignation"]

1. e4 {[%clk 0:04:58.4]} 1... e5 {[%clk 0:04:59.9]} 2. Nf3 {[%clk 0:04:53.3]}
2... d5 {[%clk 0:04:53.7]} 3. exd5 {[%clk 0:04:49]} 3... Qxd5 {[%clk 0:04:52.3]}
4. Nc3 {[%clk 0:04:36.9]} 4... Qd8 {[%clk 0:04:49.3]} 5. Bc4 {[%clk 0:04:26.4]}
5... Qf6 {[%clk 0:04:44.6]} 6. O-O {[%clk 0:04:14.7]} 6... Bb4 {[%clk
0:04:37.8]} 7. Nd5 {[%clk 0:04:09.6]} 7... Qf5 {[%clk 0:04:29.3]} 8. Nxb4 {[%clk
0:04:03.6]} 8... Be6 {[%clk 0:04:22.4]} 9. Bxe6 {[%clk 0:03:55]} 9... Qxe6
{[%clk 0:04:18.4]} 10. Re1 {[%clk 0:03:52.1]} 10... Nc6 {[%clk 0:04:07.8]} 11.
Nxc6 {[%clk 0:03:47.1]} 11... bxc6 {[%clk 0:04:06.5]} 12. Rxe5 {[%clk
0:03:44.7]} 12... Nf6 {[%clk 0:04:00.1]} 1-0